fUSD/lending_fUSD_20250106
["ID","MTS","AMOUNT","RATE_DAILY","PERIOD"]
[347878375,1736178642817,-448.12608553,9.899e-05,2]
[347878377,1736178642829,-51.87391447,9.899e-05,2]
[347878379,1736178642838,-35902.78026113,0.0001,2]
[347878381,1736178642850,-508835.98028946,0.0001,2]
[347878383,1736178642859,-50721.49801413,0.0001,2]
[347878385,1736178642869,-14566.47530512,0.0001,2]
[347878387,1736178642879,-644.6531951,0.0001,2]
[347878390,1736178642889,-644.6531951,0.0001,2]
[347878393,1736178642899,-3000.0,0.0001,2]
[347878395,1736178642909,-608.94924002,0.0001,2]
[347878398,1736178642918,-608.94923988,0.0001,2]
[347878400,1736178642928,-608.94923988,0.00010031,2]
[347878403,1736178642939,-250.0,0.0001008,2]
[347878405,1736178642948,-824.52,0.00010086,2]
[347878407,1736178642958,-500.0,0.00010136,2]
[347878410,1736178642968,-159.05,0.00010137,2]
[347878412,1736178642978,-608.94923988,0.00010141,2]
[347878414,1736178642988,-500.0,0.00010173,2]
[347878416,1736178642997,-596.95,0.00010173,2]
[347878418,1736178643007,-265.69388774,0.00010173,2]
[347878420,1736178643017,-500.0,0.00010173,2]
[347878423,1736178643028,-500.0,0.00010173,2]
[347878425,1736178643037,-500.0,0.00010173,2]
[347878427,1736178643047,-500.0,0.00010173,2]
[347878429,1736178643057,-500.0,0.00010173,2]
[347878432,1736178643067,-617.81,0.00010173,2]
[347878434,1736178643076,-500.0,0.00010173,2]
[347878436,1736178643086,-500.0,0.00010173,2]
[347878439,1736178643095,-500.0,0.00010173,2]
[347878442,1736178643105,-503.49774816,0.00010173,2]
[347878443,1736178643115,-500.0,0.00010173,2]
[347878446,1736178643125,-500.0,0.00010173,2]
[347878448,1736178643135,-500.0,0.00010173,2]
[347878450,1736178643144,-500.0,0.00010173,2]
[347878452,1736178643154,-500.0,0.00010173,2]
[347878454,1736178643164,-500.0,0.00010173,2]
[347878456,1736178643174,-500.0,0.00010173,2]
[347878458,1736178643183,-500.0,0.00010173,2]
[347878460,1736178643193,-500.0,0.00010173,2]
[347878462,1736178643203,-500.0,0.00010173,2]
[347878464,1736178643213,-500.0,0.00010173,2]
[347878466,1736178643222,-500.0,0.00010173,2]
[347878468,1736178643232,-500.0,0.00010173,2]
[347878470,1736178643242,-500.0,0.00010173,2]
[347878472,1736178643252,-500.0,0.00010173,2]
[347878474,1736178643262,-500.0,0.00010173,2]
[347878476,1736178643274,-500.0,0.00010173,2]
[347878478,1736178643284,-500.0,0.00010173,2]
[347878480,1736178643295,-500.0,0.00010173,2]
[347878482,1736178643304,-500.0,0.00010173,2]
[347878484,1736178643314,-152.36,0.00010173,2]
[347878486,1736178643323,-558.15335325,0.00010173,2]
[347878488,1736178643333,-573.25663268,0.00010173,2]
[347878490,1736178643343,-500.0,0.00010173,2]
[347878492,1736178643352,-500.0,0.00010173,2]
[347878494,1736178643361,-505.64,0.00010173,2]
[347878496,1736178643371,-500.0,0.00010173,2]
[347878499,1736178643381,-500.0,0.00010173,2]
[347878500,1736178643391,-500.0,0.00010173,2]
[347878501,1736178643400,-289.33063603,0.00010173,2]
[347878502,1736178643409,-502.50354954,0.00010173,2]
[347878503,1736178643418,-502.59599946,0.00010173,2]
[347878504,1736178643427,-549.84,0.00010173,2]
[347878505,1736178643436,-504.38567085,0.00010173,2]
[347878506,1736178643446,-500.0,0.00010173,2]
[347878507,1736178643455,-500.0,0.00010173,2]
[347878508,1736178643464,-500.0,0.00010173,2]
[347878510,1736178643474,-500.0,0.00010173,2]
[347878512,1736178643484,-597.53,0.00010173,2]
[347878514,1736178643494,-500.0,0.00010173,2]
[347878516,1736178643504,-500.0,0.00010173,2]
[347878518,1736178643514,-593.83,0.00010173,2]
[347878520,1736178643523,-500.0,0.00010173,2]
[347878522,1736178643535,-500.0,0.00010173,2]
[347878524,1736178643545,-500.0,0.00010173,2]
[347878526,1736178643556,-500.0,0.00010173,2]
[347878528,1736178643566,-503.09320382,0.00010173,2]
[347878531,1736178643577,-500.0,0.00010173,2]
[347878533,1736178643587,-500.0,0.00010173,2]
[347878535,1736178643596,-535.97,0.00010173,2]
[347878537,1736178643606,-1011.65,0.00010173,2]
[347878539,1736178643617,-500.0,0.00010173,2]
[347878541,1736178643626,-502.22329701,0.00010173,2]
[347878543,1736178643636,-501.8193211,0.00010173,2]
[347878545,1736178643645,-284.63962489,0.00010173,2]
[347878547,1736178643655,-500.0,0.00010173,2]
[347878549,1736178643665,-500.0,0.00010173,2]
[347878551,1736178643675,-627.3974056,0.00010173,2]
[347878553,1736178643686,-652.92,0.00010173,2]
[347878555,1736178643696,-504.16928516,0.00010173,2]
[347878557,1736178643705,-500.0,0.00010173,2]
[347878559,1736178643715,-500.0,0.00010173,2]
[347878561,1736178643725,-500.0,0.00010173,2]
[347878563,1736178643735,-500.0,0.00010173,2]
[347878565,1736178643744,-500.0,0.00010173,2]
[347878567,1736178643754,-500.0,0.00010173,2]
[347878569,1736178643763,-500.0,0.00010173,2]
[347878571,1736178643772,-1464.07,0.00010173,2]
[347878573,1736178643785,-511.12,0.00010173,2]
[347878575,1736178643795,-500.0,0.00010173,2]
[347878577,1736178643804,-500.0,0.00010173,2]
[347878579,1736178643815,-336.19433242,0.00010173,2]
[347878581,1736178643824,-577.55,0.00010173,2]
[347878583,1736178643834,-577.9,0.00010173,2]
[347878585,1736178643843,-500.0,0.00010173,2]
[347878587,1736178643854,-500.0,0.00010173,2]
[347878589,1736178643864,-500.0,0.00010173,2]
[347878591,1736178643874,-501.8622855,0.00010173,2]
[347878593,1736178643883,-500.0,0.00010173,2]
[347878595,1736178643893,-772.4,0.00010173,2]
[347878597,1736178643903,-619.1,0.00010173,2]
[347878599,1736178643912,-500.0,0.00010173,2]
[347878601,1736178643921,-500.0,0.00010173,2]
[347878603,1736178643934,-501.91431287,0.00010173,2]
[347878605,1736178643944,-500.0,0.00010173,2]
[347878607,1736178643954,-257.53741879,0.00010173,2]
[347878609,1736178643963,-500.0,0.00010173,2]
[347878611,1736178643973,-500.0,0.00010173,2]
[347878613,1736178643984,-502.9493649,0.00010173,2]
[347878615,1736178643995,-500.0,0.00010173,2]
[347878617,1736178644004,-500.0,0.00010173,2]
[347878619,1736178644014,-500.0,0.00010173,2]
[347878621,1736178644024,-506.5,0.00010173,2]
[347878623,1736178644035,-500.0,0.00010173,2]
[347878625,1736178644045,-500.0,0.00010173,2]
[347878627,1736178644056,-500.0,0.00010173,2]
[347878629,1736178644066,-500.0,0.00010173,2]
[347878631,1736178644076,-500.0,0.00010173,2]
[347878633,1736178644086,-500.0,0.00010173,2]
[347878636,1736178644096,-500.0,0.00010173,2]
[347878638,1736178644107,-500.0,0.00010173,2]
[347878639,1736178644116,-500.0,0.00010173,2]
[347878642,1736178644127,-500.0,0.00010173,2]
[347878644,1736178644137,-500.0,0.00010173,2]
[347878646,1736178644148,-500.0,0.00010173,2]
[347878648,1736178644158,-500.0,0.00010173,2]
[347878673,1736178644408,-500.0,0.00010173,2]
[347878675,1736178644418,-500.0,0.00010173,2]
[347878677,1736178644428,-500.0,0.00010173,2]
[347878680,1736178644438,-523.6912046,0.00010173,2]
[347878682,1736178644447,-508.71221817,0.00010173,2]
[347878683,1736178644456,-500.0,0.00010173,2]
[347878686,1736178644467,-500.0,0.00010173,2]
[347878687,1736178644476,-500.0,0.00010173,2]
[347878690,1736178644486,-500.0,0.00010173,2]
[347878692,1736178644496,-500.0,0.00010173,2]
[347878694,1736178644505,-1000.0,0.00010186,2]
[347878695,1736178644515,-608.94923988,0.00010252,2]
[347878698,1736178644524,-424.54423768,0.00010268,2]
[347878699,1736178644538,-407.537472,0.00010271,2]
[347878702,1736178644547,-605.109896,0.00010271,2]
[347878703,1736178644557,-500.0,0.00010271,2]
[347878706,1736178644566,-500.0,0.00010271,2]
[347878708,1736178644576,-644.4,0.00010271,2]
[347878709,1736178644585,-151.92,0.00010271,2]
[347878711,1736178644594,-1235.24,0.00010271,2]
[347878713,1736178644604,-500.0,0.00010271,2]
[347878715,1736178644613,-500.0,0.00010271,2]
[347878717,1736178644624,-500.0,0.00010271,2]
[347878719,1736178644633,-500.0,0.00010271,2]
[347878721,1736178644643,-500.0,0.00010272,2]
[347878723,1736178644652,-500.0,0.00010272,2]
[347878725,1736178644661,-585.79,0.00010272,2]
[347878727,1736178644671,-407.537472,0.00010272,2]
[347878729,1736178644680,-1305.15,0.00010272,2]
[347878731,1736178644690,-500.0,0.00010272,2]
[347878733,1736178644699,-500.0,0.00010272,2]
[347878735,1736178644709,-605.109896,0.00010272,2]
[347878737,1736178644718,-241.13,0.00010272,2]
[347878739,1736178644727,-500.0,0.00010272,2]
[347878741,1736178644737,-990.35,0.00010272,2]
[347878743,1736178644747,-639.36,0.00010272,2]
[347878745,1736178644756,-500.0,0.00010272,2]
[347878747,1736178644766,-500.0,0.00010272,2]
[347878749,1736178644783,-500.0,0.00010272,2]
[347878751,1736178644793,-1555.97,0.00010272,2]
[347878753,1736178644803,-2479.94,0.00010272,2]
[347878755,1736178644812,-500.0,0.00010273,2]
[347878757,1736178644821,-500.0,0.00010273,2]
[347878759,1736178644830,-612.9725626,0.00010273,2]
[347878761,1736178644840,-500.0,0.00010273,2]
[347878763,1736178644850,-500.0,0.00010273,2]
[347878765,1736178644859,-500.0,0.00010273,2]
[347878767,1736178644869,-500.0,0.00010273,2]
[347878769,1736178644879,-500.0,0.00010273,2]
[347878771,1736178644889,-500.0,0.00010273,2]
[347878773,1736178644898,-500.0,0.00010273,2]
[347878775,1736178644908,-500.0,0.00010273,2]
[347878777,1736178644917,-500.0,0.00010273,2]
[347878779,1736178644927,-500.0,0.00010273,2]
[347878781,1736178644936,-500.0,0.00010273,2]
[347878783,1736178644946,-500.0,0.00010273,2]
[347878785,1736178644955,-500.0,0.00010273,2]
[347878787,1736178644964,-500.0,0.00010273,2]
[347878789,1736178644973,-500.0,0.00010273,2]
[347878790,1736178644982,-500.0,0.00010273,2]
[347878791,1736178644991,-500.0,0.00010273,2]
[347878792,1736178645000,-500.0,0.00010273,2]
[347878793,1736178645009,-500.0,0.00010273,2]
[347878794,1736178645018,-500.0,0.00010273,2]
[347878795,1736178645031,-500.0,0.00010273,2]
[347878796,1736178645040,-500.0,0.00010273,2]
[347878797,1736178645049,-500.0,0.00010273,2]
[347878798,1736178645059,-500.0,0.00010273,2]
[347878800,1736178645068,-500.0,0.00010273,2]
[347878803,1736178645079,-500.0,0.00010273,2]
[347878805,1736178645088,-500.0,0.00010273,2]
[347878808,1736178645099,-500.0,0.00010273,2]
[347878810,1736178645108,-500.0,0.00010273,2]
[347878812,1736178645119,-500.0,0.00010273,2]
[347878813,1736178645128,-500.0,0.00010273,2]
[347878815,1736178645138,-500.0,0.00010273,2]
[347878817,1736178645148,-500.0,0.00010273,2]
[347878819,1736178645158,-500.0,0.00010273,2]
[347878822,1736178645167,-500.0,0.00010273,2]
[347878824,1736178645177,-500.0,0.00010273,2]
[347878826,1736178645186,-500.0,0.00010273,2]
[347878827,1736178645196,-500.0,0.00010273,2]
[347878830,1736178645206,-630.14,0.00010273,2]
[347878832,1736178645217,-192.16,0.00010273,2]
[347878833,1736178645227,-500.0,0.00010273,2]
[347878835,1736178645237,-500.0,0.00010273,2]
[347878838,1736178645247,-502.78847734,0.00010273,2]
[347878840,1736178645257,-500.0,0.00010273,2]
[347878842,1736178645267,-500.0,0.00010273,2]
[347878844,1736178645281,-500.0,0.00010273,2]
[347878845,1736178645293,-500.0,0.00010273,2]
[347878847,1736178645304,-500.0,0.00010273,2]
[347878849,1736178645315,-500.0,0.00010273,2]
[347878851,1736178645325,-500.0,0.00010273,2]
[347878854,1736178645336,-500.0,0.00010273,2]
[347878856,1736178645347,-500.0,0.00010273,2]
[347878858,1736178645358,-500.0,0.00010273,2]
[347878860,1736178645368,-500.0,0.00010273,2]
[347878862,1736178645379,-1922.29,0.00010273,2]
[347878864,1736178645389,-483.42502987,0.00010273,2]
[347878865,1736178645400,-500.0,0.00010273,2]
[347878867,1736178645411,-500.0,0.00010273,2]
[347878870,1736178645421,-500.0,0.00010273,2]
[347878872,1736178645431,-500.0,0.00010273,2]
[347878874,1736178645441,-500.0,0.00010273,2]
[347878875,1736178645451,-806.17,0.00010273,2]
[347878877,1736178645460,-500.0,0.00010273,2]
[347878879,1736178645470,-500.0,0.00010273,2]
[347878881,1736178645479,-1340.16,0.00010273,2]
[347878884,1736178645489,-608.94923988,0.00010362,2]
[347878885,1736178645499,-500.0,0.0001041,2]
[347878887,1736178645509,-1000.0,0.00010411,2]
[347878889,1736178645519,-1044.0,0.00010411,2]
[347878891,1736178645530,-521.56,0.00010447,2]
[347878894,1736178645543,-596.95,0.00010447,2]
[347878895,1736178645551,-500.0,0.00010447,2]
[347878898,1736178645561,-500.0,0.00010447,2]
[347878899,1736178645571,-283.78,0.00010447,2]
[347878901,1736178645580,-293.1,0.00010447,2]
[347878903,1736178645589,-500.0,0.00010447,2]
[347878905,1736178645600,-255.8250913,0.00010447,2]
[347878907,1736178645609,-500.0,0.00010447,2]
[347878909,1736178645622,-260.12,0.00010447,2]
[347878911,1736178645631,-299.48,0.00010447,2]
[347878913,1736178645641,-589.06,0.00010447,2]
[347878915,1736178645651,-291.23,0.00010447,2]
[347878918,1736178645661,-500.0,0.00010447,2]
[347878919,1736178645671,-607.95858304,0.00010447,2]
[347878921,1736178645680,-500.0,0.00010447,2]
[347878923,1736178645690,-556.23,0.00010447,2]
[347878925,1736178645699,-500.0,0.00010447,2]
[347878927,1736178645709,-500.0,0.00010447,2]
[347878929,1736178645719,-500.0,0.00010447,2]
[347878931,1736178645729,-500.0,0.00010447,2]
[347878933,1736178645738,-569.39,0.00010447,2]
[347878935,1736178645748,-500.0,0.00010447,2]
[347878938,1736178645759,-500.0,0.00010447,2]
[347878940,1736178645771,-627.79,0.00010447,2]
[347878942,1736178645783,-500.0,0.00010447,2]
[347878943,1736178645792,-500.0,0.00010447,2]
[347878945,1736178645801,-220.86,0.00010447,2]
[347878947,1736178645811,-500.0,0.00010447,2]
[347878949,1736178645820,-287.21,0.00010447,2]
[347878951,1736178645830,-535.97,0.00010447,2]
[347878954,1736178645840,-1011.65,0.00010447,2]
[347878956,1736178645849,-500.0,0.00010447,2]
[347878959,1736178645859,-500.0,0.00010447,2]
[347878962,1736178645868,-500.0,0.00010447,2]
[347878965,1736178645878,-652.92,0.00010447,2]
[347878968,1736178645887,-500.0,0.00010447,2]
[347878970,1736178645896,-620.75,0.00010447,2]
[347878973,1736178645906,-534.68,0.00010447,2]
[347878976,1736178645916,-500.0,0.00010447,2]
[347878978,1736178645925,-1464.07,0.00010447,2]
[347878981,1736178645936,-219.2377281,0.00010447,2]
[347878984,1736178645946,-500.0,0.00010447,2]
[347878987,1736178645955,-500.0,0.00010447,2]
[347878989,1736178645964,-500.0,0.00010447,2]
[347878992,1736178645974,-772.4,0.00010447,2]
[347878995,1736178645983,-500.0,0.00010447,2]
[347878998,1736178645993,-296.74401638,0.00010447,2]
[347879000,1736178646003,-500.0,0.00010447,2]
[347879003,1736178646012,-500.0,0.00010447,2]
[347879006,1736178646021,-500.0,0.00010447,2]
[347879009,1736178646033,-596.31,0.00010447,2]
[347879011,1736178646043,-395.0,0.00010447,2]
[347879014,1736178646053,-500.0,0.00010447,2]
[347879017,1736178646062,-500.0,0.00010447,2]
[347879019,1736178646071,-500.0,0.00010447,2]
[347879020,1736178646082,-508.30161474,0.00010447,2]
[347879022,1736178646092,-500.0,0.00010447,2]
[347879023,1736178646102,-500.0,0.00010447,2]
[347879024,1736178646113,-500.0,0.00010447,2]
[347879025,1736178646123,-500.0,0.00010447,2]
[347879026,1736178646132,-500.0,0.00010447,2]
[347879027,1736178646142,-500.0,0.00010447,2]
[347879029,1736178646152,-500.0,0.00010447,2]
[347879031,1736178646162,-269.81451729,0.00010447,2]
[347879033,1736178646171,-500.0,0.00010447,2]
[347879035,1736178646181,-500.0,0.00010447,2]
[347879037,1736178646191,-500.0,0.00010447,2]
[347879038,1736178646201,-608.94923988,0.00010472,2]
[347879040,1736178646211,-839.4,0.00010475,2]
[347879042,1736178646221,-424.54423768,0.00010494,2]
[347879044,1736178646231,-1891.38842919,0.00010521,2]
[347879046,1736178646241,-644.6531951,0.00010537,2]
[347879048,1736178646251,-500.0,0.00010545,2]
[347879050,1736178646260,-644.4,0.00010545,2]
[347879052,1736178646270,-1235.24,0.00010545,2]
[347879054,1736178646280,-632.11,0.00010545,2]
[347879056,1736178646293,-500.0,0.00010545,2]
[347879058,1736178646303,-500.0,0.00010545,2]
[347879060,1736178646313,-500.0,0.00010546,2]
[347879062,1736178646323,-500.0,0.00010546,2]
[347879063,1736178646332,-407.537472,0.00010546,2]
[347879064,1736178646342,-1305.15,0.00010546,2]
[347879065,1736178646351,-212.42,0.00010546,2]
[347879066,1736178646361,-605.109896,0.00010546,2]
[347879067,1736178646371,-500.0,0.00010546,2]
[347879069,1736178646380,-990.35,0.00010546,2]
[347879071,1736178646390,-639.36,0.00010546,2]
[347879073,1736178646399,-500.0,0.00010546,2]
[347879075,1736178646409,-500.0,0.00010546,2]
[347879077,1736178646418,-500.0,0.00010546,2]
[347879078,1736178646427,-1555.97,0.00010546,2]
[347879081,1736178646437,-2479.94,0.00010546,2]
[347879082,1736178646447,-500.0,0.00010547,2]
[347879085,1736178646456,-500.0,0.00010547,2]
[347879087,1736178646465,-500.0,0.00010547,2]
[347879088,1736178646475,-500.0,0.00010547,2]
[347879090,1736178646485,-500.0,0.00010547,2]
[347879092,1736178646494,-500.0,0.00010547,2]
[347879094,1736178646504,-500.0,0.00010547,2]
[347879096,1736178646513,-500.0,0.00010547,2]
[347879098,1736178646522,-500.0,0.00010547,2]
[347879100,1736178646533,-500.0,0.00010547,2]
[347879101,1736178646543,-500.0,0.00010547,2]
[347879102,1736178646553,-500.0,0.00010547,2]
[347879103,1736178646563,-500.0,0.00010547,2]
[347879104,1736178646572,-500.0,0.00010547,2]
[347879105,1736178646582,-500.0,0.00010547,2]
[347879106,1736178646591,-500.0,0.00010547,2]
[347879107,1736178646601,-500.0,0.00010547,2]
[347879108,1736178646610,-500.0,0.00010547,2]
[347879109,1736178646622,-500.0,0.00010547,2]
[347879110,1736178646632,-500.0,0.00010547,2]
[347879111,1736178646641,-618.36169396,0.00010547,2]
[347879112,1736178646653,-500.0,0.00010547,2]
[347879113,1736178646662,-500.0,0.00010547,2]
[347879114,1736178646672,-500.0,0.00010547,2]
[347879115,1736178646681,-500.0,0.00010547,2]
[347879116,1736178646691,-500.0,0.00010547,2]
[347879117,1736178646700,-500.0,0.00010547,2]
[347879118,1736178646709,-500.0,0.00010547,2]
[347879119,1736178646719,-500.0,0.00010547,2]
[347879120,1736178646728,-500.0,0.00010547,2]
[347879121,1736178646737,-500.0,0.00010547,2]
[347879122,1736178646747,-500.0,0.00010547,2]
[347879123,1736178646756,-500.0,0.00010547,2]
[347879124,1736178646766,-500.0,0.00010547,2]
[347879125,1736178646777,-328.88677781,0.00010547,2]
[347879126,1736178646791,-500.0,0.00010547,2]
[347879127,1736178646800,-500.0,0.00010547,2]
[347879128,1736178646810,-500.0,0.00010547,2]
[347879129,1736178646819,-640.5,0.00010547,2]
[347879130,1736178646828,-500.0,0.00010547,2]
[347879131,1736178646838,-500.0,0.00010547,2]
[347879132,1736178646848,-500.0,0.00010547,2]
[347879133,1736178646858,-500.0,0.00010547,2]
[347879134,1736178646868,-500.0,0.00010547,2]
[347879135,1736178646877,-500.0,0.00010547,2]
[347879136,1736178646887,-500.0,0.00010547,2]
[347879137,1736178646896,-1922.29,0.00010547,2]
[347879138,1736178646905,-500.0,0.00010547,2]
[347879139,1736178646915,-500.0,0.00010547,2]
[347879140,1736178646924,-500.0,0.00010547,2]
[347879141,1736178646933,-535.32624546,0.00010547,2]
[347879143,1736178646943,-806.17,0.00010547,2]
[347879145,1736178646954,-1340.16,0.00010547,2]
[347879147,1736178646963,-540.31,0.00010556,2]
[347879149,1736178646972,-608.94923988,0.00010583,2]
[347879151,1736178646982,-150.0,0.00010658,2]
[347879153,1736178646992,-150.0,0.00010658,2]
[347879155,1736178647001,-150.0,0.00010658,2]
[347879157,1736178647011,-1611.29,0.00010676,2]
[347879159,1736178647021,-500.0,0.00010684,2]
[347879161,1736178647031,-608.94923988,0.00010693,2]
[347879163,1736178647043,-596.95,0.00010721,2]
[347879165,1736178647052,-500.0,0.00010721,2]
[347879167,1736178647062,-591.21,0.00010721,2]
[347879169,1736178647071,-200.0,0.00010721,2]
[347879171,1736178647080,-197.71,0.00010721,2]
[347879172,1736178647090,-500.0,0.00010721,2]
[347879174,1736178647099,-500.0,0.00010721,2]
[347879177,1736178647109,-500.0,0.00010721,2]
[347879179,1736178647118,-535.97,0.00010721,2]
[347879180,1736178647128,-1011.65,0.00010721,2]
[347879182,1736178647137,-500.0,0.00010721,2]
[347879185,1736178647147,-500.0,0.00010721,2]
[347879186,1736178647156,-652.92,0.00010721,2]
[347879188,1736178647166,-241.66,0.00010721,2]
[347879190,1736178647175,-381.15,0.00010721,2]
[347879193,1736178647185,-1464.07,0.00010721,2]
[347879195,1736178647194,-265.03219749,0.00010721,2]
[347879197,1736178647204,-500.0,0.00010721,2]
[347879199,1736178647213,-500.0,0.00010721,2]
[347879201,1736178647222,-772.4,0.00010721,2]
[347879203,1736178647232,-500.0,0.00010721,2]
[347879205,1736178647241,-500.0,0.00010721,2]
[347879206,1736178647250,-571.89,0.00010721,2]
[347879209,1736178647260,-500.0,0.00010721,2]
[347879211,1736178647269,-500.0,0.00010721,2]
[347879212,1736178647278,-500.0,0.00010721,2]
[347879214,1736178647290,-500.0,0.00010721,2]
[347879217,1736178647301,-153.0606375,0.00010721,2]
[347879218,1736178647310,-500.0,0.00010721,2]
[347879220,1736178647319,-500.0,0.00010721,2]
[347879223,1736178647329,-500.0,0.00010721,2]
[347879225,1736178647341,-500.0,0.00010721,2]
[347879227,1736178647350,-255.0,0.00010779,2]
[347879228,1736178647359,-608.94923988,0.00010803,2]
[347879231,1736178647368,-556.63,0.00010819,2]
[347879233,1736178647378,-644.4,0.00010819,2]
[347879234,1736178647387,-1235.24,0.00010819,2]
[347879236,1736178647396,-500.0,0.00010819,2]
[347879238,1736178647406,-506.69739863,0.00010819,2]
[347879240,1736178647415,-500.0,0.0001082,2]
[347879241,1736178647425,-500.0,0.0001082,2]
[347879242,1736178647434,-407.537472,0.0001082,2]
[347879243,1736178647443,-1305.15,0.0001082,2]
[347879244,1736178647452,-605.109896,0.0001082,2]
[347879245,1736178647462,-500.0,0.0001082,2]
[347879246,1736178647471,-990.35,0.0001082,2]
[347879247,1736178647480,-639.36,0.0001082,2]
[347879248,1736178647490,-500.0,0.0001082,2]
[347879249,1736178647500,-500.0,0.0001082,2]
[347879250,1736178647509,-639.42458484,0.0001082,2]
[347879251,1736178647519,-1555.97,0.0001082,2]
[347879252,1736178647528,-2479.94,0.0001082,2]
[347879253,1736178647540,-500.0,0.00010821,2]
[347879254,1736178647549,-500.0,0.00010821,2]
[347879255,1736178647559,-500.0,0.00010821,2]
[347879256,1736178647568,-500.0,0.00010821,2]
[347879257,1736178647577,-500.0,0.00010821,2]
[347879258,1736178647587,-500.0,0.00010821,2]
[347879259,1736178647596,-297.46,0.00010821,2]
[347879260,1736178647605,-500.0,0.00010821,2]
[347879261,1736178647614,-500.0,0.00010821,2]
[347879262,1736178647625,-500.0,0.00010821,2]
[347879263,1736178647635,-500.0,0.00010821,2]
[347879264,1736178647645,-500.0,0.00010821,2]
[347879265,1736178647655,-500.0,0.00010821,2]
[347879266,1736178647665,-500.0,0.00010821,2]
[347879267,1736178647674,-159.48774061,0.00010821,2]
[347879268,1736178647684,-500.0,0.00010821,2]
[347879269,1736178647693,-500.0,0.00010821,2]
[347879270,1736178647703,-500.0,0.00010821,2]
[347879272,1736178647712,-500.0,0.00010821,2]
[347879274,1736178647722,-500.0,0.00010821,2]
[347879276,1736178647731,-500.0,0.00010821,2]
[347879278,1736178647740,-500.0,0.00010821,2]
[347879280,1736178647749,-580.88,0.00010821,2]
[347879282,1736178647759,-500.0,0.00010821,2]
[347879284,1736178647769,-595.55,0.00010821,2]
[347879286,1736178647782,-500.0,0.00010821,2]
[347879288,1736178647793,-500.0,0.00010821,2]
[347879290,1736178647802,-500.0,0.00010821,2]
[347879291,1736178647811,-500.0,0.00010821,2]
[347879293,1736178647820,-500.0,0.00010821,2]
[347879295,1736178647830,-500.0,0.00010821,2]
[347879297,1736178647839,-1922.29,0.00010821,2]
[347879299,1736178647848,-504.47183773,0.00010821,2]
[347879301,1736178647858,-500.0,0.00010821,2]
[347879303,1736178647867,-500.0,0.00010821,2]
[347879305,1736178647877,-806.17,0.00010821,2]
[347879307,1736178647887,-1340.16,0.00010821,2]
[347879309,1736178647897,-213.81,0.00010826,2]
[347879311,1736178647906,-587.0,0.00010855,2]
[347879313,1736178647915,-181.53,0.00010871,2]
[347879314,1736178647924,-152.38928474,0.000109,2]
[347879316,1736178647934,-152.38928473,0.000109,2]
[347879319,1736178647943,-152.38928473,0.000109,2]
[347879320,1736178647953,-152.38928473,0.000109,2]
[347879322,1736178647963,-152.38928473,0.000109,2]